[Event "*** SCC Grand Prix: Titled Tuesday Blitz"]
[Site "Chess.com"]
[Date "2020.06.09"]
[Round "8"]
[White "chito89"]
[Black "RaunakSadhwani2005"]
[Result "1-0"]
[WhiteElo "2767"]
[BlackElo "2892"]
[TimeControl "180+1"]
[EndTime "10:35:36 PDT"]
[Termination "chito89 won by resignation"]

1. e4 {[%clk 0:02:59]} 1... c6 {[%clk 0:02:59.3]} 2. d4 {[%clk 0:02:57.9]} 2...
d5 {[%clk 0:02:59.2]} 3. Nc3 {[%clk 0:02:57.8]} 3... dxe4 {[%clk 0:02:59.2]} 4.
Nxe4 {[%clk 0:02:57.9]} 4... Nf6 {[%clk 0:02:59.8]} 5. Nxf6+ {[%clk 0:02:56.9]}
5... exf6 {[%clk 0:03:00.7]} 6. Bc4 {[%clk 0:02:55.8]} 6... Bd6 {[%clk
0:02:57.4]} 7. Qe2+ {[%clk 0:02:55.9]} 7... Be7 {[%clk 0:02:55.3]} 8. Nf3 {[%clk
0:02:54]} 8... O-O {[%clk 0:02:55.7]} 9. O-O {[%clk 0:02:53.2]} 9... Bg4 {[%clk
0:02:49]} 10. c3 {[%clk 0:02:38.5]} 10... Bd6 {[%clk 0:02:48.6]} 11. Qe4 {[%clk
0:02:37.1]} 11... Bh5 {[%clk 0:02:44.4]} 12. Nh4 {[%clk 0:02:29.8]} 12... Nd7
{[%clk 0:02:17.9]} 13. a4 {[%clk 0:02:21.4]} 13... Nb6 {[%clk 0:02:13.9]} 14.
Bd3 {[%clk 0:02:13.1]} 14... Bg6 {[%clk 0:02:12.4]} 15. Nxg6 {[%clk 0:02:11.8]}
15... hxg6 {[%clk 0:02:13.3]} 16. a5 {[%clk 0:02:10.8]} 16... Nd5 {[%clk
0:02:12.7]} 17. a6 {[%clk 0:02:07.2]} 17... b5 {[%clk 0:02:08.3]} 18. g3 {[%clk
0:02:04.4]} 18... f5 {[%clk 0:02:06.6]} 19. Qf3 {[%clk 0:02:04.3]} 19... Qd7
{[%clk 0:02:01.9]} 20. Bxb5 {[%clk 0:02:00.6]} 20... Bxg3 {[%clk 0:01:55.1]} 21.
hxg3 {[%clk 0:01:33]} 21... cxb5 {[%clk 0:01:54.7]} 22. Bd2 {[%clk 0:01:29.3]}
22... Rfe8 {[%clk 0:01:38.7]} 23. Rfe1 {[%clk 0:01:29.4]} 23... Rxe1+ {[%clk
0:01:15.1]} 24. Rxe1 {[%clk 0:01:29]} 24... f6 {[%clk 0:01:15.4]} 25. Re7 {[%clk
0:01:21.9]} 25... Nxe7 {[%clk 0:01:08.6]} 26. Qxa8+ {[%clk 0:01:21.5]} 26... Kf7
{[%clk 0:01:09.5]} 27. Qb7 {[%clk 0:01:20.9]} 27... Ke6 {[%clk 0:01:09.4]} 28.
Bf4 {[%clk 0:01:18.8]} 28... Nc6 {[%clk 0:00:49]} 29. Qxb5 {[%clk 0:01:17.2]}
29... g5 {[%clk 0:00:46.9]} 30. Be3 {[%clk 0:01:01.5]} 30... Qd5 {[%clk
0:00:46.7]} 31. c4 {[%clk 0:00:57.1]} 31... Qxb5 {[%clk 0:00:35.1]} 32. cxb5
{[%clk 0:00:57.2]} 32... Nb4 {[%clk 0:00:26.9]} 33. d5+ {[%clk 0:00:41.2]} 33...
Kxd5 {[%clk 0:00:27.3]} 34. Bxa7 {[%clk 0:00:40.9]} 34... Kc4 {[%clk 0:00:28.2]}
35. b6 {[%clk 0:00:39.5]} 35... Nxa6 {[%clk 0:00:27.7]} 36. b7 {[%clk
0:00:40.2]} 36... Kb3 {[%clk 0:00:27.1]} 37. b8=Q+ {[%clk 0:00:38.4]} 37... Nxb8
{[%clk 0:00:27.6]} 38. Bxb8 {[%clk 0:00:39.2]} 38... Kxb2 {[%clk 0:00:28.5]} 39.
Bd6 {[%clk 0:00:39.9]} 39... Kc3 {[%clk 0:00:20.5]} 40. Bf8 {[%clk 0:00:40]}
40... g6 {[%clk 0:00:20.7]} 41. Bg7 {[%clk 0:00:39.1]} 41... g4 {[%clk
0:00:21.2]} 42. Bxf6+ {[%clk 0:00:39.4]} 42... Kd3 {[%clk 0:00:22.1]} 43. Bg5
{[%clk 0:00:39.6]} 43... Ke4 {[%clk 0:00:23]} 44. Kf1 {[%clk 0:00:36.1]} 44...
Kf3 {[%clk 0:00:23.9]} 45. Ke1 {[%clk 0:00:36.3]} 1-0

[Event "*** SCC Grand Prix: Titled Tuesday Blitz"]
[Site "Chess.com"]
[Date "2020.06.09"]
[Round "8"]
[White "mortngabriel"]
[Black "kot60"]
[Result "1/2-1/2"]
[WhiteElo "2464"]
[BlackElo "2359"]
[TimeControl "180+1"]
[EndTime "10:35:36 PDT"]
[Termination "Game drawn - insufficient material"]

1. e4 {[%clk 0:03:00.9]} 1... e5 {[%clk 0:02:59]} 2. Nc3 {[%clk 0:03:01.3]} 2...
Bc5 {[%clk 0:02:57.1]} 3. Bc4 {[%clk 0:03:01.7]} 3... d6 {[%clk 0:02:56.7]} 4.
d3 {[%clk 0:03:01.7]} 4... Nc6 {[%clk 0:02:55.8]} 5. f4 {[%clk 0:03:01.9]} 5...
Bxg1 {[%clk 0:02:48.5]} 6. Rxg1 {[%clk 0:03:02.1]} 6... Qh4+ {[%clk 0:02:45.5]}
7. g3 {[%clk 0:02:43.5]} 7... Qxh2 {[%clk 0:02:36.4]} 8. Be3 {[%clk 0:02:43.3]}
8... Nf6 {[%clk 0:02:33.8]} 9. Nd5 {[%clk 0:02:22.1]} 9... Nxd5 {[%clk
0:02:31.9]} 10. Bxd5 {[%clk 0:02:23]} 10... Nb4 {[%clk 0:02:25.6]} 11. Bb3
{[%clk 0:02:18.5]} 11... Be6 {[%clk 0:02:20.3]} 12. Qd2 {[%clk 0:01:59.1]} 12...
Qxd2+ {[%clk 0:02:13.1]} 13. Kxd2 {[%clk 0:02:00]} 13... Bxb3 {[%clk 0:02:12]}
14. axb3 {[%clk 0:02:00.9]} 14... a6 {[%clk 0:02:08.8]} 15. c3 {[%clk
0:01:29.2]} 15... Nc6 {[%clk 0:02:07.6]} 16. d4 {[%clk 0:01:29.3]} 16... O-O
{[%clk 0:01:58.3]} 17. d5 {[%clk 0:01:21.5]} 17... Ne7 {[%clk 0:01:56.8]} 18. c4
{[%clk 0:01:19]} 18... f5 {[%clk 0:01:51.8]} 19. fxe5 {[%clk 0:01:14.1]} 19...
fxe4 {[%clk 0:01:46.9]} 20. Bf4 {[%clk 0:00:36.2]} 20... dxe5 {[%clk 0:01:40]}
21. Bxe5 {[%clk 0:00:36.1]} 21... Rac8 {[%clk 0:01:39.2]} 22. Ke3 {[%clk
0:00:34.2]} 22... Rfe8 {[%clk 0:01:37]} 23. Bc3 {[%clk 0:00:24.8]} 23... Nf5+
{[%clk 0:01:34.8]} 24. Ke2 {[%clk 0:00:23.4]} 24... e3 {[%clk 0:01:31.2]} 25. g4
{[%clk 0:00:18.1]} 25... Nd6 {[%clk 0:01:25.5]} 26. Rg3 {[%clk 0:00:18.6]} 26...
b5 {[%clk 0:01:17.1]} 27. c5 {[%clk 0:00:16.2]} 27... Ne4 {[%clk 0:01:16.1]} 28.
Rxe3 {[%clk 0:00:16]} 28... Nxc5 {[%clk 0:01:13.5]} 29. b4 {[%clk 0:00:14.3]}
29... Rxe3+ {[%clk 0:01:01.7]} 30. Kxe3 {[%clk 0:00:14.2]} 30... Re8+ {[%clk
0:01:02.3]} 31. Kf3 {[%clk 0:00:13.4]} 31... Na4 {[%clk 0:00:58.9]} 32. Bd4
{[%clk 0:00:13.4]} 32... Rd8 {[%clk 0:00:54.5]} 33. Ke4 {[%clk 0:00:13.4]} 33...
Re8+ {[%clk 0:00:54.7]} 34. Kd3 {[%clk 0:00:12.9]} 34... Rf8 {[%clk 0:00:52.9]}
35. b3 {[%clk 0:00:11.9]} 35... Nb6 {[%clk 0:00:51.6]} 36. Bxb6 {[%clk 0:00:10]}
36... cxb6 {[%clk 0:00:51.5]} 37. Rxa6 {[%clk 0:00:10.4]} 37... Rf4 {[%clk
0:00:49.3]} 38. d6 {[%clk 0:00:08.5]} 38... Kf7 {[%clk 0:00:47.7]} 39. Rxb6
{[%clk 0:00:08.3]} 39... Rxb4 {[%clk 0:00:46.8]} 40. Rb7+ {[%clk 0:00:08.1]}
40... Ke6 {[%clk 0:00:44.7]} 41. Rxg7 {[%clk 0:00:01.7]} 41... Rxb3+ {[%clk
0:00:42.6]} 42. Kc2 {[%clk 0:00:01.9]} 42... Rb4 {[%clk 0:00:37.7]} 43. d7
{[%clk 0:00:02.8]} 43... Rd4 {[%clk 0:00:37]} 44. Rxh7 {[%clk 0:00:02.4]} 44...
Rxd7 {[%clk 0:00:35.3]} 45. Rxd7 {[%clk 0:00:03.3]} 45... Kxd7 {[%clk
0:00:35.5]} 46. Kc3 {[%clk 0:00:03.3]} 46... Ke6 {[%clk 0:00:35.8]} 47. Kb4
{[%clk 0:00:04.2]} 47... Kf6 {[%clk 0:00:36.3]} 48. Kxb5 {[%clk 0:00:05.1]}
48... Kg5 {[%clk 0:00:36.9]} 49. Kb6 {[%clk 0:00:05.1]} 49... Kxg4 {[%clk
0:00:37.8]} 1/2-1/2

[Event "*** SCC Grand Prix: Titled Tuesday Blitz"]
[Site "Chess.com"]
[Date "2020.06.09"]
[Round "8"]
[White "snap_man"]
[Black "FMOlexandrProhorov"]
[Result "0-1"]
[WhiteElo "2286"]
[BlackElo "2091"]
[TimeControl "180+1"]
[EndTime "10:35:37 PDT"]
[Termination "FMOlexandrProhorov won by resignation"]

1. e4 {[%clk 0:03:00.9]} 1... c5 {[%clk 0:02:54.6]} 2. Nf3 {[%clk 0:03:01]} 2...
e6 {[%clk 0:02:54]} 3. g3 {[%clk 0:03:00.3]} 3... Nc6 {[%clk 0:02:53.2]} 4. Bg2
{[%clk 0:03:00.4]} 4... g6 {[%clk 0:02:53.3]} 5. O-O {[%clk 0:03:00.4]} 5... Bg7
{[%clk 0:02:51.6]} 6. Re1 {[%clk 0:03:00.7]} 6... Nge7 {[%clk 0:02:50.8]} 7. c3
{[%clk 0:03:00.4]} 7... O-O {[%clk 0:02:48.8]} 8. d4 {[%clk 0:03:00.4]} 8...
cxd4 {[%clk 0:02:49.1]} 9. cxd4 {[%clk 0:03:00.5]} 9... d5 {[%clk 0:02:49.1]}
10. e5 {[%clk 0:02:58.9]} 10... Qb6 {[%clk 0:02:33.5]} 11. Nc3 {[%clk 0:02:40]}
11... Nf5 {[%clk 0:02:32.7]} 12. Na4 {[%clk 0:02:39.7]} 12... Qc7 {[%clk
0:02:22.9]} 13. Bf1 {[%clk 0:01:39.9]} 13... Nb4 {[%clk 0:02:10.2]} 14. Nc3
{[%clk 0:01:28.8]} 14... Bd7 {[%clk 0:02:10.1]} 15. a3 {[%clk 0:01:28.5]} 15...
Nc6 {[%clk 0:02:09.7]} 16. Bg5 {[%clk 0:00:45]} 16... Rae8 {[%clk 0:02:05.4]}
17. g4 {[%clk 0:00:44.6]} 17... Nfe7 {[%clk 0:01:51.8]} 18. Qd2 {[%clk
0:00:44.7]} 18... f6 {[%clk 0:01:47.7]} 19. exf6 {[%clk 0:00:40.9]} 19... Bxf6
{[%clk 0:01:48.6]} 20. Bh6 {[%clk 0:00:41]} 20... Rf7 {[%clk 0:01:41.1]} 21. Nb5
{[%clk 0:00:40.6]} 21... Qb6 {[%clk 0:01:07.9]} 22. Nd6 {[%clk 0:00:40.1]} 22...
Nxd4 {[%clk 0:01:06.2]} 23. Nxd4 {[%clk 0:00:35.1]} 23... Qxd6 {[%clk
0:00:59.4]} 24. Bg2 {[%clk 0:00:30.9]} 24... Bh4 {[%clk 0:00:55.2]} 25. Nf3
{[%clk 0:00:28.2]} 25... Bf6 {[%clk 0:00:50.1]} 26. Bf4 {[%clk 0:00:28]} 26...
Qb6 {[%clk 0:00:48.3]} 27. Be5 {[%clk 0:00:27.8]} 27... Nc6 {[%clk 0:00:44.7]}
28. Bxf6 {[%clk 0:00:25.6]} 28... Rxf6 {[%clk 0:00:45.6]} 29. g5 {[%clk
0:00:22.6]} 29... Rf5 {[%clk 0:00:44.7]} 30. Nh4 {[%clk 0:00:20]} 30... Rf7
{[%clk 0:00:41.1]} 31. Re2 {[%clk 0:00:19.8]} 31... Ref8 {[%clk 0:00:40.7]} 32.
Rf1 {[%clk 0:00:17.9]} 32... Nd4 {[%clk 0:00:40.8]} 33. Re3 {[%clk 0:00:17]}
33... Bb5 {[%clk 0:00:39.5]} 34. Rd3 {[%clk 0:00:08.9]} 34... Rf4 {[%clk
0:00:39.5]} 35. Nf3 {[%clk 0:00:07.9]} 35... Nxf3+ {[%clk 0:00:38.8]} 36. Rxf3
{[%clk 0:00:07.4]} 36... Rxf3 {[%clk 0:00:37.9]} 37. Bxf3 {[%clk 0:00:07.8]}
37... Bxf1 {[%clk 0:00:33.9]} 38. Bg4 {[%clk 0:00:07.3]} 38... Bc4 {[%clk
0:00:28.3]} 0-1

[Event "*** SCC Grand Prix: Titled Tuesday Blitz"]
[Site "Chess.com"]
[Date "2020.06.09"]
[Round "8"]
[White "maciek_92"]
[Black "Msb2"]
[Result "0-1"]
[WhiteElo "2681"]
[BlackElo "2844"]
[TimeControl "180+1"]
[EndTime "10:35:38 PDT"]
[Termination "Msb2 won by resignation"]

1. c4 {[%clk 0:03:00.9]} 1... e6 {[%clk 0:02:59.9]} 2. Nf3 {[%clk 0:03:00.3]}
2... d5 {[%clk 0:03:00.2]} 3. g3 {[%clk 0:02:59]} 3... dxc4 {[%clk 0:03:00]} 4.
Qa4+ {[%clk 0:02:57.6]} 4... Bd7 {[%clk 0:03:00.4]} 5. Qxc4 {[%clk 0:02:58.3]}
5... c5 {[%clk 0:03:01.1]} 6. Nc3 {[%clk 0:02:55.9]} 6... Bc6 {[%clk 0:03:00.8]}
7. Bg2 {[%clk 0:02:56]} 7... Nd7 {[%clk 0:03:00.4]} 8. O-O {[%clk 0:02:55.4]}
8... Ngf6 {[%clk 0:03:00.9]} 9. Qb3 {[%clk 0:02:35.3]} 9... Be7 {[%clk
0:03:00.4]} 10. d3 {[%clk 0:02:26.8]} 10... O-O {[%clk 0:02:59.8]} 11. a4 {[%clk
0:02:26.3]} 11... b6 {[%clk 0:02:57.1]} 12. Rd1 {[%clk 0:02:24.6]} 12... Qc7
{[%clk 0:02:54.9]} 13. Nb5 {[%clk 0:02:22.4]} 13... Qb7 {[%clk 0:02:54.8]} 14.
Bf4 {[%clk 0:02:21.2]} 14... e5 {[%clk 0:02:55.1]} 15. Bg5 {[%clk 0:02:15.3]}
15... h6 {[%clk 0:02:55.5]} 16. Bxf6 {[%clk 0:02:14.8]} 16... Nxf6 {[%clk
0:02:56.4]} 17. Ne1 {[%clk 0:02:13.9]} 17... Bxg2 {[%clk 0:02:50.9]} 18. Nxg2
{[%clk 0:02:14.8]} 18... Rfd8 {[%clk 0:02:51.1]} 19. Nc3 {[%clk 0:02:12.6]}
19... e4 {[%clk 0:02:40.6]} 20. dxe4 {[%clk 0:02:02.2]} 20... Nxe4 {[%clk
0:02:41.5]} 21. Nd5 {[%clk 0:02:02.4]} 21... Nf6 {[%clk 0:02:38.1]} 22. Nge3
{[%clk 0:01:58.4]} 22... Rac8 {[%clk 0:02:25]} 23. Qc4 {[%clk 0:01:55.5]} 23...
Nxd5 {[%clk 0:02:16]} 24. Nxd5 {[%clk 0:01:55.4]} 24... Bf8 {[%clk 0:02:16]} 25.
Rd3 {[%clk 0:01:52.3]} 25... a6 {[%clk 0:02:16.1]} 26. Rad1 {[%clk 0:01:50.2]}
26... b5 {[%clk 0:02:16.5]} 27. axb5 {[%clk 0:01:44.2]} 27... axb5 {[%clk
0:02:17.4]} 28. Qe4 {[%clk 0:01:44]} 28... Qb8 {[%clk 0:02:04.7]} 29. Qg4 {[%clk
0:01:04.1]} 29... Rd6 {[%clk 0:01:57]} 30. e4 {[%clk 0:01:00.3]} 30... Re8
{[%clk 0:01:55.3]} 31. Qf5 {[%clk 0:00:49.2]} 31... c4 {[%clk 0:01:53.6]} 32.
Rd4 {[%clk 0:00:47.4]} 32... Qa7 {[%clk 0:01:50.2]} 33. Kg2 {[%clk 0:00:39.6]}
33... Ree6 {[%clk 0:01:44.8]} 34. e5 {[%clk 0:00:36]} 34... Ra6 {[%clk
0:01:32.7]} 35. Nf4 {[%clk 0:00:34.1]} 35... g6 {[%clk 0:01:27.3]} 36. Qe4
{[%clk 0:00:32.6]} 36... Re8 {[%clk 0:01:26.2]} 37. Rd7 {[%clk 0:00:31.9]} 37...
Qa8 {[%clk 0:01:26.7]} 38. Qxa8 {[%clk 0:00:19.7]} 38... Raxa8 {[%clk
0:01:25.9]} 39. e6 {[%clk 0:00:19.1]} 39... Re7 {[%clk 0:01:26.4]} 40. exf7+
{[%clk 0:00:17.7]} 40... Kxf7 {[%clk 0:01:26.6]} 41. R7d5 {[%clk 0:00:14.3]}
41... g5 {[%clk 0:01:25.1]} 42. Rf5+ {[%clk 0:00:13.3]} 42... Kg8 {[%clk
0:01:24.2]} 43. Nd5 {[%clk 0:00:13.2]} 43... Rb7 {[%clk 0:01:22.7]} 44. h4
{[%clk 0:00:07.7]} 44... gxh4 {[%clk 0:01:21.9]} 45. gxh4 {[%clk 0:00:07.9]}
45... Bg7 {[%clk 0:01:22.3]} 46. Rd2 {[%clk 0:00:06.9]} 46... Kh8 {[%clk
0:01:22.6]} 47. Re2 {[%clk 0:00:06.8]} 47... b4 {[%clk 0:01:22]} 48. h5 {[%clk
0:00:07.1]} 48... b3 {[%clk 0:01:21]} 49. Nf4 {[%clk 0:00:06.4]} 49... c3 {[%clk
0:01:20.7]} 50. Nd3 {[%clk 0:00:05]} 50... c2 {[%clk 0:01:19.3]} 51. Rc5 {[%clk
0:00:05.3]} 51... Ra1 {[%clk 0:01:16.1]} 52. Re8+ {[%clk 0:00:03.8]} 52... Kh7
{[%clk 0:01:16.3]} 53. Rec8 {[%clk 0:00:03.9]} 53... Rd1 {[%clk 0:01:15.6]} 54.
Nf4 {[%clk 0:00:04.1]} 54... Bxb2 {[%clk 0:01:15.2]} 55. Ne6 {[%clk 0:00:03.1]}
55... c1=Q {[%clk 0:01:11.2]} 56. Nf8+ {[%clk 0:00:03.3]} 56... Kg7 {[%clk
0:01:11]} 57. Ne6+ {[%clk 0:00:02.8]} 57... Kf7 {[%clk 0:01:11.5]} 58. Rxc1
{[%clk 0:00:02.2]} 58... Rxc1 {[%clk 0:01:11.4]} 59. Rxc1 {[%clk 0:00:02.2]}
59... Bxc1 {[%clk 0:01:12.3]} 60. Nd8+ {[%clk 0:00:03]} 60... Ke7 {[%clk
0:01:13.2]} 61. Nxb7 {[%clk 0:00:03.9]} 61... b2 {[%clk 0:01:14.1]} 0-1

[Event "*** SCC Grand Prix: Titled Tuesday Blitz"]
[Site "Chess.com"]
[Date "2020.06.09"]
[Round "8"]
[White "sasko1234"]
[Black "iaraldinho"]
[Result "1/2-1/2"]
[WhiteElo "2481"]
[BlackElo "2625"]
[TimeControl "180+1"]
[EndTime "10:35:38 PDT"]
[Termination "Game drawn by repetition"]

1. b3 {[%clk 0:03:00.9]} 1... f5 {[%clk 0:02:59.5]} 2. Bb2 {[%clk 0:03:00.4]}
2... d6 {[%clk 0:02:59.9]} 3. e3 {[%clk 0:03:00.6]} 3... e5 {[%clk 0:02:59.9]}
4. d4 {[%clk 0:02:58.7]} 4... e4 {[%clk 0:02:59.2]} 5. c4 {[%clk 0:02:49.1]}
5... Nf6 {[%clk 0:02:58.7]} 6. Nc3 {[%clk 0:02:48.7]} 6... g6 {[%clk 0:02:59]}
7. Be2 {[%clk 0:02:39.2]} 7... Bg7 {[%clk 0:02:58.7]} 8. h4 {[%clk 0:02:39.2]}
8... h6 {[%clk 0:02:47.8]} 9. Nh3 {[%clk 0:02:36.3]} 9... O-O {[%clk 0:02:46.6]}
10. Nf4 {[%clk 0:02:34.8]} 10... Qe8 {[%clk 0:02:46.6]} 11. Ncd5 {[%clk
0:02:20.6]} 11... Nxd5 {[%clk 0:02:44.6]} 12. cxd5 {[%clk 0:02:19.7]} 12... c6
{[%clk 0:02:31.5]} 13. Bc4 {[%clk 0:01:59]} 13... b5 {[%clk 0:02:25.3]} 14. Be2
{[%clk 0:01:51.9]} 14... cxd5 {[%clk 0:02:24.7]} 15. Nxd5 {[%clk 0:01:47.7]}
15... Qd7 {[%clk 0:02:12.1]} 16. Rc1 {[%clk 0:01:32.8]} 16... Na6 {[%clk
0:02:07.6]} 17. Qd2 {[%clk 0:00:59.5]} 17... Bb7 {[%clk 0:02:03.2]} 18. Nf4
{[%clk 0:00:59.4]} 18... Kh7 {[%clk 0:02:01.9]} 19. Qa5 {[%clk 0:00:50.6]} 19...
Rac8 {[%clk 0:01:49.8]} 20. Bxb5 {[%clk 0:00:45]} 20... Rxc1+ {[%clk 0:01:48.6]}
21. Bxc1 {[%clk 0:00:45.2]} 21... Qc7 {[%clk 0:01:48.8]} 22. Qxc7 {[%clk
0:00:40.1]} 22... Nxc7 {[%clk 0:01:49.7]} 23. Be2 {[%clk 0:00:40.4]} 23... Rc8
{[%clk 0:01:47]} 24. Ba3 {[%clk 0:00:38.9]} 24... Nd5 {[%clk 0:01:46.1]} 25.
Nxd5 {[%clk 0:00:36.9]} 25... Bxd5 {[%clk 0:01:45.2]} 26. Kd2 {[%clk 0:00:36.3]}
26... Rc6 {[%clk 0:01:40.6]} 27. Rc1 {[%clk 0:00:34.4]} 27... Rxc1 {[%clk
0:01:16.2]} 28. Kxc1 {[%clk 0:00:34]} 28... Bf8 {[%clk 0:01:17.1]} 29. Kd2
{[%clk 0:00:33.8]} 29... Be7 {[%clk 0:01:17.1]} 30. g3 {[%clk 0:00:33.9]} 30...
g5 {[%clk 0:01:16.9]} 31. hxg5 {[%clk 0:00:33.8]} 31... hxg5 {[%clk 0:01:17.8]}
32. Bb4 {[%clk 0:00:32.5]} 32... Kg6 {[%clk 0:01:17.5]} 33. Kc3 {[%clk
0:00:32.5]} 33... Kf6 {[%clk 0:01:17.7]} 34. a3 {[%clk 0:00:31.5]} 34... Ke6
{[%clk 0:01:15.4]} 35. Ba5 {[%clk 0:00:31.1]} 35... Bf6 {[%clk 0:01:15.2]} 36.
Bc4 {[%clk 0:00:27.3]} 36... f4 {[%clk 0:01:14.6]} 37. gxf4 {[%clk 0:00:26.6]}
37... gxf4 {[%clk 0:01:14.8]} 38. Bc7 {[%clk 0:00:23.6]} 38... f3 {[%clk
0:01:09.7]} 39. Kd2 {[%clk 0:00:20.5]} 39... Bh4 {[%clk 0:01:08.1]} 40. Ke1
{[%clk 0:00:19.9]} 40... Be7 {[%clk 0:00:56.5]} 41. Ba5 {[%clk 0:00:19.7]} 41...
Bxc4 {[%clk 0:00:52.7]} 42. bxc4 {[%clk 0:00:19.2]} 42... d5 {[%clk 0:00:53.6]}
43. c5 {[%clk 0:00:18.2]} 43... Kd7 {[%clk 0:00:52.6]} 44. a4 {[%clk 0:00:18.4]}
44... Kc6 {[%clk 0:00:52.5]} 45. Kf1 {[%clk 0:00:17.5]} 45... Bh4 {[%clk
0:00:49.3]} 46. Be1 {[%clk 0:00:17]} 46... Bd8 {[%clk 0:00:45]} 47. Kg1 {[%clk
0:00:17.1]} 47... Bc7 {[%clk 0:00:45.3]} 48. Kf1 {[%clk 0:00:17.3]} 48... Bh2
{[%clk 0:00:44.4]} 49. Bd2 {[%clk 0:00:16.8]} 49... Bc7 {[%clk 0:00:43.6]} 50.
Be1 {[%clk 0:00:17]} 50... Bd8 {[%clk 0:00:42.7]} 51. Bd2 {[%clk 0:00:17.1]}
51... Bc7 {[%clk 0:00:42.7]} 52. Kg1 {[%clk 0:00:17.1]} 52... Kb7 {[%clk
0:00:40.2]} 53. Kf1 {[%clk 0:00:16.6]} 53... Kc6 {[%clk 0:00:39.9]} 1/2-1/2

[Event "*** SCC Grand Prix: Titled Tuesday Blitz"]
[Site "Chess.com"]
[Date "2020.06.09"]
[Round "8"]
[White "chessmaugli"]
[Black "Munkhzul_Turmunkh"]
[Result "0-1"]
[WhiteElo "2430"]
[BlackElo "2597"]
[TimeControl "180+1"]
[EndTime "10:35:40 PDT"]
[Termination "Munkhzul_Turmunkh won on time"]

1. e4 {[%clk 0:03:00.9]} 1... c5 {[%clk 0:02:59.7]} 2. Nf3 {[%clk 0:03:00]} 2...
d6 {[%clk 0:02:59.1]} 3. Bb5+ {[%clk 0:02:54.4]} 3... Nd7 {[%clk 0:02:57.1]} 4.
d4 {[%clk 0:02:52.3]} 4... cxd4 {[%clk 0:02:56.6]} 5. Qxd4 {[%clk 0:02:50.1]}
5... a6 {[%clk 0:02:55.5]} 6. Bxd7+ {[%clk 0:02:32.8]} 6... Bxd7 {[%clk
0:02:56.4]} 7. c4 {[%clk 0:02:32]} 7... Nf6 {[%clk 0:02:53.6]} 8. Nc3 {[%clk
0:02:31.1]} 8... e6 {[%clk 0:02:52.9]} 9. Bg5 {[%clk 0:02:26.1]} 9... Be7 {[%clk
0:02:52.9]} 10. O-O {[%clk 0:02:23.6]} 10... O-O {[%clk 0:02:52.2]} 11. Bxf6
{[%clk 0:02:15.8]} 11... Bxf6 {[%clk 0:02:46.7]} 12. Qxd6 {[%clk 0:02:14.3]}
12... Bxc3 {[%clk 0:02:43.4]} 13. bxc3 {[%clk 0:02:12.5]} 13... Bc6 {[%clk
0:02:44.1]} 14. Qxd8 {[%clk 0:01:33.8]} 14... Rfxd8 {[%clk 0:02:45]} 15. Rfe1
{[%clk 0:01:33.1]} 15... Rac8 {[%clk 0:02:39.9]} 16. Rab1 {[%clk 0:01:28.7]}
16... Rd3 {[%clk 0:02:34.6]} 17. Rb3 {[%clk 0:01:26.2]} 17... Ba4 {[%clk
0:02:27]} 18. Rxb7 {[%clk 0:01:24.2]} 18... Rxc3 {[%clk 0:02:26.3]} 19. Ne5
{[%clk 0:01:21.2]} 19... f6 {[%clk 0:02:21.2]} 20. Nd7 {[%clk 0:01:12]} 20...
R3xc4 {[%clk 0:02:14.1]} 21. f3 {[%clk 0:01:09.6]} 21... Rc1 {[%clk 0:02:01.3]}
22. Rxc1 {[%clk 0:00:54.2]} 22... Rxc1+ {[%clk 0:02:02.2]} 23. Kf2 {[%clk
0:00:54]} 23... Rc2+ {[%clk 0:01:59.2]} 24. Kg3 {[%clk 0:00:52.1]} 24... e5
{[%clk 0:01:50.8]} 25. Nb6 {[%clk 0:00:39.3]} 25... Rb2 {[%clk 0:01:47]} 26.
Rb8+ {[%clk 0:00:37.2]} 26... Kf7 {[%clk 0:01:45.5]} 27. Nd7 {[%clk 0:00:36.4]}
27... Rxa2 {[%clk 0:01:42]} 28. Nc5 {[%clk 0:00:33.6]} 28... Bb5 {[%clk
0:01:39.3]} 29. Rb7+ {[%clk 0:00:32.7]} 29... Kg6 {[%clk 0:01:36.8]} 30. Ne6
{[%clk 0:00:30.5]} 30... Bf1 {[%clk 0:01:30.2]} 31. Rxg7+ {[%clk 0:00:28.2]}
31... Kh6 {[%clk 0:01:29.5]} 32. Kh3 {[%clk 0:00:26.2]} 32... a5 {[%clk
0:01:18.2]} 33. Rg8 {[%clk 0:00:20.4]} 33... Bc4 {[%clk 0:01:06.7]} 34. Re8
{[%clk 0:00:16.3]} 34... Rd2 {[%clk 0:01:02.1]} 35. Nf8 {[%clk 0:00:11.4]} 35...
Kg7 {[%clk 0:00:48.2]} 36. Ra8 {[%clk 0:00:05.2]} 36... Bf7 {[%clk 0:00:38.6]}
37. g3 {[%clk 0:00:02.8]} 37... h5 {[%clk 0:00:30.7]} 38. f4 {[%clk 0:00:01.7]}
38... Bc4 {[%clk 0:00:26.2]} 0-1